fUSD/lending_fUSD_20240426
["ID","MTS","AMOUNT","RATE_DAILY","PERIOD"]
[323597680,1714102242018,-500.0,0.00010958,2]
[323597681,1714102242030,-629.07,0.00010958,2]
[323597682,1714102242039,-500.0,0.00010958,2]
[323597683,1714102242050,-1497.52,0.00010958,2]
[323597684,1714102242060,-500.0,0.00010958,2]
[323597685,1714102242070,-1894.71,0.00010958,2]
[323597686,1714102242079,-500.0,0.00010958,2]
[323597687,1714102242089,-500.0,0.00010958,2]
[323597688,1714102242098,-2267.21,0.00010958,2]
[323597689,1714102242108,-500.0,0.00010958,2]
[323597690,1714102242119,-500.0,0.00010958,2]
[323597691,1714102242129,-500.0,0.00010958,2]
[323597692,1714102242138,-502.08,0.00010958,2]
[323597693,1714102242148,-500.0,0.00010958,2]
[323597694,1714102242160,-1120.56,0.00010958,2]
[323597695,1714102242169,-1779.92,0.00010958,2]
[323597696,1714102242179,-500.0,0.00010958,2]
[323597697,1714102242189,-500.0,0.00010958,2]
[323597698,1714102242200,-227.77427361,0.00010958,2]
[323597699,1714102242211,-500.0,0.00010958,2]
[323597700,1714102242221,-500.0,0.00010958,2]
[323597701,1714102242232,-574.93735446,0.00010958,2]
[323597702,1714102242242,-5674.12,0.00010958,2]
[323597703,1714102242252,-583.18,0.00010958,2]
[323597704,1714102242261,-500.0,0.00010958,2]
[323597705,1714102242271,-773.03,0.00010958,2]
[323597706,1714102242281,-500.0,0.00010958,2]
[323597707,1714102242290,-1065.24,0.00010958,2]
[323597708,1714102242300,-500.0,0.00010958,2]
[323597709,1714102242310,-591.03,0.00010958,2]
[323597710,1714102242319,-500.0,0.00010958,2]
[323597711,1714102242330,-767.15,0.00010958,2]
[323597712,1714102242340,-500.0,0.00010958,2]
[323597713,1714102242350,-500.0,0.00010958,2]
[323597714,1714102242360,-829.11,0.00010958,2]
[323597715,1714102242370,-500.0,0.00010958,2]
[323597716,1714102242380,-500.0,0.00010958,2]
[323597717,1714102242390,-500.0,0.00010958,2]
[323597718,1714102242400,-912.84,0.00010958,2]
[323597719,1714102242410,-500.0,0.00010958,2]
[323597720,1714102242420,-500.0,0.00010958,2]
[323597721,1714102242430,-500.0,0.00010958,2]
[323597722,1714102242441,-500.0,0.00010958,2]
[323597723,1714102242452,-500.0,0.00010958,2]
[323597724,1714102242462,-500.0,0.00010958,2]
[323597725,1714102242472,-1195.58,0.00010958,2]
[323597726,1714102242482,-500.0,0.00010958,2]
[323597727,1714102242493,-576.48,0.00010958,2]
[323597728,1714102242504,-500.0,0.00010958,2]
[323597729,1714102242515,-1092.73,0.00010958,2]
[323597730,1714102242525,-672.62,0.00010958,2]
[323597731,1714102242539,-500.0,0.00010958,2]
[323597732,1714102242549,-500.0,0.00010958,2]
[323597733,1714102242560,-500.0,0.00010958,2]
[323597734,1714102242570,-500.0,0.00010958,2]
[323597735,1714102242579,-500.0,0.00010958,2]
[323597736,1714102242589,-2976.79,0.00010958,2]
[323597737,1714102242599,-758.36,0.00010958,2]
[323597738,1714102242610,-704.01,0.00010958,2]
[323597739,1714102242619,-676.52,0.00010958,2]
[323597740,1714102242629,-500.0,0.00010958,2]
[323597741,1714102242639,-1416.24,0.00010958,2]
[323597742,1714102242648,-1084.01,0.00010958,2]
[323597743,1714102242658,-500.0,0.00010958,2]
[323597744,1714102242669,-2990.73,0.00010958,2]
[323597745,1714102242679,-913.42,0.00010958,2]
[323597746,1714102242690,-500.0,0.00010958,2]
[323597747,1714102242700,-2274.77,0.00010958,2]
[323597748,1714102242711,-500.0,0.00010958,2]
[323597749,1714102242721,-500.0,0.00010958,2]
[323597750,1714102242730,-500.0,0.00010958,2]
[323597751,1714102242741,-599.98,0.00010958,2]
[323597752,1714102242751,-2246.66,0.00010958,2]
[323597753,1714102242761,-2242.86,0.00010958,2]
[323597754,1714102242772,-495.04995963,0.00010958,2]
[323597755,1714102242783,-887.18,0.00010958,2]
[323597756,1714102242794,-676.38,0.00010958,2]
[323597757,1714102242805,-500.0,0.00010958,2]
[323597758,1714102242814,-2210.04,0.00010958,2]
[323597759,1714102242824,-913.91,0.00010958,2]
[323597760,1714102242833,-500.0,0.00010958,2]
[323597761,1714102242842,-943.47,0.00010958,2]
[323597762,1714102242851,-1053.46,0.00010958,2]
[323597763,1714102242862,-500.0,0.00010958,2]
[323597764,1714102242872,-1051.54,0.00010958,2]
[323597765,1714102242882,-500.0,0.00010958,2]
[323597766,1714102242891,-500.0,0.00010958,2]
[323597767,1714102242900,-4132.75,0.00010958,2]
[323597768,1714102242909,-926.08,0.00010958,2]
[323597769,1714102242918,-621.58,0.00010958,2]
[323597770,1714102242927,-500.0,0.00010958,2]
[323597771,1714102242937,-500.0,0.00010958,2]
[323597772,1714102242947,-500.0,0.00010958,2]
[323597773,1714102242957,-638.83,0.00010958,2]
[323597774,1714102242967,-537.85,0.00010958,2]
[323597775,1714102242978,-1170.45,0.00010958,2]
[323597776,1714102242988,-500.0,0.00010958,2]
[323597777,1714102242998,-2102.7,0.00010958,2]
[323597778,1714102243007,-8935.91,0.00010958,2]
[323597779,1714102243016,-746.03,0.00010958,2]
[323597780,1714102243025,-500.0,0.00010958,2]
[323597782,1714102243035,-500.0,0.00010958,2]
[323597783,1714102243045,-500.0,0.00010958,2]
[323597784,1714102243054,-932.58,0.00010958,2]
[323597785,1714102243065,-500.0,0.00010958,2]
[323597786,1714102243074,-500.0,0.00010958,2]
[323597787,1714102243084,-500.0,0.00010958,2]
[323597788,1714102243093,-500.0,0.00010958,2]
[323597789,1714102243102,-500.0,0.00010958,2]
[323597790,1714102243112,-500.0,0.00010958,2]
[323597791,1714102243122,-155.27641517,0.00010958,2]
[323597792,1714102243132,-988.53,0.00010958,2]
[323597793,1714102243141,-500.0,0.00010958,2]
[323597796,1714102243152,-512.54346343,0.00010958,2]
[323597799,1714102243168,-500.0,0.00010958,2]
[323597802,1714102243177,-10552.33,0.00010958,2]
[323597805,1714102243186,-500.0,0.00010958,2]
[323597807,1714102243195,-2681.41,0.00010958,2]
[323597808,1714102243204,-500.0,0.00010958,2]
[323597810,1714102243214,-500.0,0.00010958,2]
[323597811,1714102243223,-500.0,0.00010958,2]
[323597812,1714102243233,-700.15,0.00010958,2]
[323597814,1714102243242,-500.0,0.00010958,2]
[323597816,1714102243251,-1147.98,0.00010958,2]
[323597818,1714102243260,-763.39,0.00010958,2]
[323597820,1714102243270,-500.0,0.00010958,2]
[323597822,1714102243280,-500.0,0.00010958,2]
[323597823,1714102243289,-500.0,0.00010958,2]
[323597825,1714102243298,-500.0,0.00010958,2]
[323597827,1714102243307,-500.0,0.00010958,2]
[323597829,1714102243318,-500.0,0.00010958,2]
[323597831,1714102243327,-500.0,0.00010958,2]
[323597833,1714102243337,-500.0,0.00010958,2]
[323597835,1714102243347,-500.0,0.00010958,2]
[323597837,1714102243356,-500.0,0.00010958,2]
[323597838,1714102243366,-500.0,0.00010958,2]
[323597839,1714102243377,-500.0,0.00010958,2]
[323597840,1714102243386,-150.0,0.00010959,2]
[323597841,1714102243395,-1645.28,0.00010959,2]
[323597842,1714102243406,-1353.03,0.0001096,2]
[323597843,1714102243416,-1353.03,0.0001096,2]
[323597844,1714102243425,-1353.03,0.0001096,2]
[323597845,1714102243435,-1353.03,0.0001096,2]
[323597846,1714102243444,-313.18035922,0.00011,2]
[323597847,1714102243453,-155.0,0.00011,2]
[323597848,1714102243462,-910.7,0.00011,2]
[323597849,1714102243473,-413.87,0.00011,2]
[323597850,1714102243483,-200.0,0.00011,2]
[323597851,1714102243493,-413.87,0.00011,2]
[323597852,1714102243502,-390.95,0.00011,2]
[323597853,1714102243512,-194.45,0.00011,2]
[323597854,1714102243522,-903.86,0.00011,2]
[323597855,1714102243533,-910.54,0.00011,2]
[323597856,1714102243542,-244.74498084,0.00011,2]
[323597857,1714102243551,-174.12900968,0.00011132,2]
[323597858,1714102243560,-460.8712,0.00011132,2]
[323597859,1714102243570,-499.99,0.00011132,2]
[323597860,1714102243580,-910.7,0.000112,2]
[323597861,1714102243589,-413.87,0.000112,2]
[323597862,1714102243599,-500.0,0.00011232,2]
[323597863,1714102243608,-292.52,0.00011232,2]
[323597864,1714102243618,-500.0,0.00011232,2]
[323597865,1714102243627,-500.0,0.00011232,2]
[323597867,1714102243637,-500.0,0.00011232,2]
[323597869,1714102243646,-500.0,0.00011232,2]
[323597870,1714102243655,-500.0,0.00011232,2]
[323597871,1714102243664,-500.0,0.00011232,2]
[323597872,1714102243673,-500.0,0.00011232,2]
[323597873,1714102243683,-500.0,0.00011232,2]
[323597874,1714102243692,-171.02782742,0.00011232,2]
[323597875,1714102243701,-500.0,0.00011232,2]
[323597876,1714102243711,-500.0,0.00011232,2]
[323597877,1714102243720,-500.0,0.00011232,2]
[323597878,1714102243729,-500.0,0.00011232,2]
[323597879,1714102243739,-500.0,0.00011232,2]
[323597880,1714102243749,-500.0,0.00011232,2]
[323597881,1714102243760,-500.0,0.00011232,2]
[323597882,1714102243769,-500.0,0.00011232,2]
[323597883,1714102243779,-500.0,0.00011232,2]
[323597884,1714102243790,-500.0,0.00011232,2]
[323597885,1714102243799,-742.26,0.00011232,2]
[323597886,1714102243809,-526.87,0.00011232,2]
[323597887,1714102243818,-500.0,0.00011232,2]
[323597888,1714102243827,-1277.29,0.00011232,2]
[323597889,1714102243836,-500.0,0.00011232,2]
[323597890,1714102243845,-500.0,0.00011232,2]
[323597891,1714102243854,-500.0,0.00011232,2]
[323597892,1714102243863,-508.66253729,0.00011232,2]
[323597893,1714102243873,-500.0,0.00011232,2]
[323597894,1714102243883,-500.0,0.00011232,2]
[323597895,1714102243893,-500.0,0.00011232,2]
[323597896,1714102243902,-500.0,0.00011232,2]
[323597897,1714102243911,-500.0,0.00011232,2]
[323597898,1714102243920,-500.0,0.00011232,2]
[323597899,1714102243929,-500.0,0.00011232,2]
[323597900,1714102243938,-514.36857063,0.00011232,2]
[323597901,1714102243947,-500.0,0.00011232,2]
[323597902,1714102243957,-500.0,0.00011232,2]
[323597903,1714102243966,-500.0,0.00011232,2]
[323597904,1714102243976,-500.0,0.00011232,2]
[323597905,1714102243985,-230.48020132,0.00011232,2]
[323597906,1714102243995,-547.35,0.00011232,2]
[323597907,1714102244004,-500.0,0.00011232,2]
[323597908,1714102244013,-500.0,0.00011232,2]
[323597909,1714102244023,-500.0,0.00011232,2]
[323597910,1714102244034,-199.55644563,0.00011232,2]
[323597911,1714102244043,-500.0,0.00011232,2]
[323597912,1714102244054,-500.0,0.00011232,2]
[323597913,1714102244064,-292.72247308,0.00011232,2]
[323597914,1714102244073,-527.48745174,0.00011232,2]
[323597915,1714102244083,-577.12129307,0.00011232,2]
[323597916,1714102244093,-500.0,0.00011232,2]
[323597917,1714102244102,-500.0,0.00011232,2]
[323597918,1714102244111,-687.33,0.00011232,2]
[323597919,1714102244121,-500.0,0.00011232,2]
[323597920,1714102244130,-500.0,0.00011232,2]
[323597921,1714102244140,-500.0,0.00011232,2]
[323597922,1714102244149,-500.0,0.00011232,2]
[323597923,1714102244162,-586.85,0.00011232,2]
[323597924,1714102244171,-500.0,0.00011232,2]
[323597925,1714102244180,-500.0,0.00011232,2]
[323597926,1714102244190,-500.0,0.00011232,2]
[323597927,1714102244199,-500.0,0.00011232,2]
[323597928,1714102244208,-500.0,0.00011232,2]
[323597929,1714102244218,-500.0,0.00011232,2]
[323597930,1714102244227,-614.38,0.00011232,2]
[323597931,1714102244237,-500.0,0.00011232,2]
[323597932,1714102244246,-500.0,0.00011232,2]
[323597933,1714102244255,-500.0,0.00011232,2]
[323597934,1714102244264,-500.0,0.00011232,2]
[323597935,1714102244273,-500.0,0.00011232,2]
[323597936,1714102244284,-500.0,0.00011232,2]
[323597937,1714102244293,-500.0,0.00011232,2]
[323597938,1714102244303,-574.62,0.00011232,2]
[323597939,1714102244312,-500.0,0.00011232,2]
[323597940,1714102244322,-588.27,0.00011232,2]
[323597941,1714102244331,-206.64884698,0.00011232,2]
[323597942,1714102244340,-500.0,0.00011232,2]
[323597943,1714102244349,-500.0,0.00011232,2]
[323597944,1714102244358,-645.19,0.00011232,2]
[323597945,1714102244367,-500.0,0.00011232,2]
[323597946,1714102244376,-230.28681202,0.00011232,2]
[323597947,1714102244385,-500.0,0.00011232,2]
[323597948,1714102244394,-500.0,0.00011232,2]
[323597949,1714102244403,-500.0,0.00011232,2]
[323597950,1714102244412,-500.0,0.00011232,2]
[323597951,1714102244421,-500.0,0.00011232,2]
[323597952,1714102244430,-642.73,0.00011232,2]
[323597953,1714102244439,-581.56,0.00011232,2]
[323597954,1714102244448,-500.0,0.00011232,2]
[323597955,1714102244457,-500.0,0.00011232,2]
[323597956,1714102244467,-500.0,0.00011232,2]
[323597957,1714102244475,-500.0,0.00011232,2]
[323597958,1714102244485,-500.0,0.00011232,2]
[323597959,1714102244494,-500.0,0.00011232,2]
[323597960,1714102244503,-500.0,0.00011232,2]
[323597961,1714102244512,-500.0,0.00011232,2]
[323597962,1714102244521,-500.0,0.00011232,2]
[323597963,1714102244531,-500.0,0.00011232,2]
[323597964,1714102244540,-500.0,0.00011232,2]
[323597965,1714102244549,-542.82,0.00011232,2]
[323597966,1714102244558,-500.0,0.00011232,2]
[323597967,1714102244567,-500.0,0.00011232,2]
[323597968,1714102244576,-500.0,0.00011232,2]
[323597969,1714102244585,-500.0,0.00011232,2]
[323597970,1714102244594,-500.0,0.00011232,2]
[323597971,1714102244603,-500.0,0.00011232,2]
[323597972,1714102244612,-843.19,0.00011232,2]
[323597973,1714102244621,-500.0,0.00011232,2]
[323597974,1714102244630,-500.0,0.00011232,2]
[323597975,1714102244639,-500.0,0.00011232,2]
[323597976,1714102244648,-500.0,0.00011232,2]
[323597977,1714102244657,-517.3393708,0.00011232,2]
[323597978,1714102244665,-209.60487035,0.00011232,2]
[323597979,1714102244674,-500.0,0.00011232,2]
[323597980,1714102244683,-577.73,0.00011232,2]
[323597981,1714102244692,-500.0,0.00011232,2]
[323597982,1714102244700,-500.0,0.00011232,2]
[323597983,1714102244709,-500.0,0.00011232,2]
[323597984,1714102244719,-500.0,0.00011232,2]
[323597985,1714102244728,-500.0,0.00011232,2]
[323597986,1714102244738,-500.0,0.00011232,2]
[323597987,1714102244747,-500.0,0.00011232,2]
[323597988,1714102244757,-616.75,0.00011232,2]
[323597989,1714102244766,-500.0,0.00011232,2]
[323597990,1714102244775,-500.0,0.00011232,2]
[323597991,1714102244785,-500.0,0.00011232,2]
[323597992,1714102244794,-500.0,0.00011232,2]
[323597993,1714102244804,-500.0,0.00011232,2]
[323597994,1714102244813,-500.0,0.00011232,2]
[323597995,1714102244822,-568.73,0.00011232,2]
[323597996,1714102244831,-276.25451892,0.00011232,2]
[323597997,1714102244841,-500.0,0.00011232,2]
[323597998,1714102244850,-500.0,0.00011232,2]
[323597999,1714102244859,-787.08,0.00011232,2]
[323598000,1714102244868,-500.0,0.00011232,2]
[323598001,1714102244876,-599.64,0.00011232,2]
[323598002,1714102244885,-504.23,0.00011232,2]
[323598003,1714102244896,-500.0,0.00011232,2]
[323598004,1714102244906,-856.13,0.00011232,2]
[323598005,1714102244916,-500.0,0.00011232,2]
[323598006,1714102244926,-500.0,0.00011232,2]
[323598007,1714102244936,-639.71,0.00011232,2]
[323598008,1714102244948,-261.14,0.00011232,2]
[323598009,1714102244959,-500.0,0.00011232,2]
[323598010,1714102244969,-500.0,0.00011232,2]
[323598011,1714102245180,-500.0,0.00011232,2]
[323598012,1714102245190,-500.0,0.00011232,2]
[323598013,1714102245199,-500.0,0.00011232,2]
[323598014,1714102245209,-500.0,0.00011232,2]
[323598015,1714102245219,-527.17112607,0.00011232,2]
[323598016,1714102245229,-500.0,0.00011232,2]
[323598017,1714102245240,-500.0,0.00011232,2]
[323598018,1714102245250,-500.0,0.00011232,2]
[323598019,1714102245259,-500.0,0.00011232,2]
[323598020,1714102245268,-500.0,0.00011232,2]
[323598021,1714102245277,-500.0,0.00011232,2]
[323598022,1714102245288,-500.0,0.00011232,2]
[323598023,1714102245297,-639.28,0.00011232,2]
[323598024,1714102245306,-500.0,0.00011232,2]
[323598025,1714102245316,-500.0,0.00011232,2]
[323598026,1714102245325,-500.0,0.00011232,2]
[323598027,1714102245335,-500.0,0.00011232,2]
[323598028,1714102245344,-508.33974571,0.00011232,2]
[323598029,1714102245353,-500.0,0.00011232,2]
[323598030,1714102245362,-500.0,0.00011232,2]
[323598031,1714102245371,-500.0,0.00011232,2]
[323598032,1714102245381,-500.0,0.00011232,2]
[323598033,1714102245390,-500.0,0.00011232,2]
[323598034,1714102245400,-500.0,0.00011232,2]
[323598035,1714102245409,-500.0,0.00011232,2]
[323598036,1714102245420,-500.0,0.00011232,2]
[323598037,1714102245430,-500.0,0.00011232,2]
[323598038,1714102245441,-626.08,0.00011232,2]
[323598039,1714102245451,-500.0,0.00011232,2]
[323598040,1714102245461,-500.0,0.00011232,2]
[323598041,1714102245470,-500.0,0.00011232,2]
[323598042,1714102245480,-500.0,0.00011232,2]
[323598043,1714102245490,-500.0,0.00011232,2]
[323598044,1714102245499,-500.0,0.00011232,2]
[323598045,1714102245510,-500.0,0.00011232,2]
[323598046,1714102245519,-500.0,0.00011232,2]
[323598047,1714102245529,-500.0,0.00011232,2]
[323598048,1714102245538,-500.0,0.00011232,2]
[323598049,1714102245548,-500.0,0.00011232,2]
[323598050,1714102245557,-500.0,0.00011232,2]
[323598051,1714102245566,-500.0,0.00011232,2]
[323598052,1714102245575,-500.0,0.00011232,2]
[323598053,1714102245584,-318.71,0.00011232,2]
[323598054,1714102245594,-500.0,0.00011232,2]
[323598055,1714102245603,-500.0,0.00011232,2]
[323598056,1714102245613,-500.0,0.00011232,2]
[323598057,1714102245623,-500.0,0.00011232,2]
[323598058,1714102245633,-500.0,0.00011232,2]
[323598059,1714102245642,-535.16952986,0.00011232,2]
[323598060,1714102245651,-541.18,0.00011232,2]
[323598061,1714102245660,-500.0,0.00011232,2]
[323598062,1714102245670,-500.0,0.00011232,2]
[323598063,1714102245679,-466.14450378,0.00011232,2]
[323598064,1714102245688,-500.0,0.00011232,2]
[323598065,1714102245697,-500.0,0.00011232,2]
[323598066,1714102245706,-500.0,0.00011232,2]
[323598067,1714102245715,-500.0,0.00011232,2]
[323598068,1714102245724,-500.0,0.00011232,2]
[323598069,1714102245733,-500.0,0.00011232,2]
[323598070,1714102245742,-500.0,0.00011232,2]
[323598071,1714102245751,-500.0,0.00011232,2]
[323598072,1714102245760,-597.86,0.00011232,2]
[323598073,1714102245769,-862.75,0.00011232,2]
[323598074,1714102245778,-500.0,0.00011232,2]
[323598075,1714102245789,-500.0,0.00011232,2]
[323598076,1714102245798,-782.82,0.00011232,2]
[323598077,1714102245807,-500.0,0.00011232,2]
[323598078,1714102245816,-500.0,0.00011232,2]
[323598079,1714102245826,-500.0,0.00011232,2]
[323598080,1714102245835,-500.0,0.00011232,2]
[323598081,1714102245845,-500.0,0.00011232,2]
[323598082,1714102245854,-581.29,0.00011232,2]
[323598083,1714102245863,-500.0,0.00011232,2]
[323598084,1714102245872,-500.0,0.00011232,2]
[323598085,1714102245881,-500.0,0.00011232,2]
[323598086,1714102245890,-500.0,0.00011232,2]
[323598087,1714102245899,-500.0,0.00011232,2]
[323598088,1714102245909,-587.38,0.00011232,2]
[323598090,1714102245918,-500.0,0.00011232,2]
[323598091,1714102245927,-500.0,0.00011232,2]
[323598092,1714102245936,-1036.85,0.00011232,2]
[323598093,1714102245945,-500.0,0.00011232,2]
[323598094,1714102245955,-500.0,0.00011232,2]
[323598095,1714102245964,-500.0,0.00011232,2]
[323598096,1714102245974,-500.0,0.00011232,2]
[323598097,1714102245983,-157.69631171,0.00011232,2]
[323598098,1714102245993,-500.0,0.00011232,2]
[323598099,1714102246002,-500.0,0.00011232,2]
[323598100,1714102246012,-2910.43,0.00011232,2]
[323598101,1714102246021,-500.0,0.00011232,2]
[323598103,1714102246031,-652.6,0.00011232,2]
[323598104,1714102246040,-512.24,0.00011232,2]
[323598105,1714102246049,-651.6,0.00011232,2]
[323598106,1714102246058,-745.15,0.00011232,2]
[323598107,1714102246067,-500.0,0.00011232,2]
[323598108,1714102246077,-500.0,0.00011232,2]
[323598110,1714102246087,-620.66,0.00011232,2]
[323598112,1714102246097,-487.08155944,0.00011232,2]
[323598114,1714102246106,-500.0,0.00011232,2]
[323598116,1714102246115,-4100.53,0.00011232,2]
[323598118,1714102246125,-500.0,0.00011232,2]
[323598120,1714102246134,-629.07,0.00011232,2]
[323598122,1714102246143,-500.0,0.00011232,2]
[323598124,1714102246153,-1497.52,0.00011232,2]
[323598126,1714102246166,-500.0,0.00011232,2]
[323598128,1714102246175,-1894.71,0.00011232,2]
[323598130,1714102246185,-500.0,0.00011232,2]
[323598132,1714102246194,-500.0,0.00011232,2]
[323598134,1714102246204,-2267.21,0.00011232,2]
[323598136,1714102246213,-500.0,0.00011232,2]
[323598138,1714102246222,-500.0,0.00011232,2]
[323598140,1714102246232,-500.0,0.00011232,2]
[323598142,1714102246241,-502.08,0.00011232,2]
[323598144,1714102246250,-500.0,0.00011232,2]
[323598146,1714102246260,-1120.56,0.00011232,2]
[323598148,1714102246269,-1779.92,0.00011232,2]
[323598150,1714102246279,-500.0,0.00011232,2]
[323598152,1714102246289,-500.0,0.00011232,2]
[323598154,1714102246298,-500.0,0.00011232,2]
[323598156,1714102246307,-500.0,0.00011232,2]
[323598158,1714102246316,-5674.12,0.00011232,2]
[323598160,1714102246326,-583.18,0.00011232,2]
[323598162,1714102246335,-500.0,0.00011232,2]
[323598164,1714102246344,-773.03,0.00011232,2]
[323598166,1714102246353,-500.0,0.00011232,2]
[323598168,1714102246363,-1065.24,0.00011232,2]
[323598170,1714102246372,-500.0,0.00011232,2]
[323598172,1714102246381,-591.03,0.00011232,2]
[323598174,1714102246390,-293.88778707,0.00011232,2]
[323598176,1714102246400,-767.15,0.00011232,2]
[323598178,1714102246409,-500.0,0.00011232,2]
[323598180,1714102246418,-500.0,0.00011232,2]
[323598182,1714102246428,-829.11,0.00011232,2]
[323598184,1714102246437,-500.0,0.00011232,2]
[323598186,1714102246446,-500.0,0.00011232,2]
[323598188,1714102246456,-500.0,0.00011232,2]
[323598189,1714102246465,-912.84,0.00011232,2]
[323598190,1714102246474,-500.0,0.00011232,2]
[323598191,1714102246483,-500.0,0.00011232,2]
[323598193,1714102246492,-500.0,0.00011232,2]
[323598195,1714102246502,-500.0,0.00011232,2]
[323598196,1714102246512,-500.0,0.00011232,2]
[323598197,1714102246522,-1195.58,0.00011232,2]
[323598198,1714102246534,-500.0,0.00011232,2]
[323598199,1714102246545,-576.48,0.00011232,2]
[323598200,1714102246555,-500.0,0.00011232,2]
[323598201,1714102246564,-1092.73,0.00011232,2]
[323598202,1714102246574,-672.62,0.00011232,2]
[323598203,1714102246583,-500.0,0.00011232,2]
[323598204,1714102246592,-500.0,0.00011232,2]
[323598205,1714102246601,-500.0,0.00011232,2]
[323598206,1714102246611,-533.92894551,0.00011232,2]
[323598207,1714102246620,-2976.79,0.00011232,2]
[323598208,1714102246629,-758.36,0.00011232,2]
[323598209,1714102246639,-704.01,0.00011232,2]
[323598210,1714102246648,-676.52,0.00011232,2]
[323598211,1714102246657,-500.0,0.00011232,2]
[323598212,1714102246667,-1416.24,0.00011232,2]
[323598213,1714102246676,-1084.01,0.00011232,2]
[323598214,1714102246689,-500.0,0.00011232,2]
[323598215,1714102246700,-2990.73,0.00011232,2]
[323598216,1714102246711,-913.42,0.00011232,2]
[323598217,1714102246721,-500.0,0.00011232,2]
[323598218,1714102246730,-2274.77,0.00011232,2]
[323598219,1714102246739,-500.0,0.00011232,2]
[323598220,1714102246749,-500.0,0.00011232,2]
[323598221,1714102246758,-599.98,0.00011232,2]
[323598222,1714102246769,-2246.66,0.00011232,2]
[323598223,1714102246779,-2242.86,0.00011232,2]
[323598224,1714102246788,-887.18,0.00011232,2]
[323598225,1714102246798,-676.38,0.00011232,2]
[323598226,1714102246808,-500.0,0.00011232,2]
[323598227,1714102246817,-2210.04,0.00011232,2]
[323598228,1714102246826,-458.64506076,0.00011232,2]
[323598229,1714102246836,-913.91,0.00011232,2]
[323598230,1714102246845,-943.47,0.00011232,2]
[323598231,1714102246854,-1053.46,0.00011232,2]
[323598232,1714102246863,-500.0,0.00011232,2]
[323598233,1714102246873,-1051.54,0.00011232,2]
[323598234,1714102246882,-500.0,0.00011232,2]
[323598235,1714102246891,-500.0,0.00011232,2]
[323598236,1714102246900,-4132.75,0.00011232,2]
[323598237,1714102246910,-926.08,0.00011232,2]
[323598238,1714102246919,-621.58,0.00011232,2]
[323598239,1714102246929,-500.0,0.00011232,2]
[323598240,1714102246939,-500.0,0.00011232,2]
[323598241,1714102246948,-638.83,0.00011232,2]
[323598242,1714102246958,-500.0,0.00011232,2]
[323598243,1714102246967,-537.85,0.00011232,2]
[323598244,1714102246976,-1170.45,0.00011232,2]
[323598245,1714102246985,-2102.7,0.00011232,2]
[323598246,1714102246995,-500.0,0.00011232,2]
[323598247,1714102247006,-8935.91,0.00011232,2]
[323598248,1714102247015,-746.03,0.00011232,2]